fUST/lending_fUST_20240525
["ID","MTS","AMOUNT","RATE_DAILY","PERIOD"]
[327895019,1716585047149,-207.15,0.00027123,11]
[327895020,1716585047159,-500.0,0.00027123,11]
[327895021,1716585047168,-360.97565246,0.00027123,11]
[327895022,1716585047177,-500.0,0.00027123,11]
[327895023,1716585047186,-2258.06,0.00027123,11]
[327895024,1716585047196,-500.0,0.00027123,11]
[327895025,1716585047205,-500.0,0.00027123,11]
[327895026,1716585047215,-1176.13,0.00027123,11]
[327895027,1716585047224,-500.0,0.00027123,11]
[327895028,1716585047234,-500.0,0.00027123,11]
[327895029,1716585047243,-500.0,0.00027123,11]
[327895030,1716585047252,-347.94,0.00027123,11]
[327895031,1716585047262,-500.0,0.00027123,11]
[327895032,1716585047271,-832.504839,0.00027162,2]
[327895033,1716585047280,-1137.40253748,0.0002739,2]
[327895034,1716585047290,-500.0,0.00027397,12]
[327895035,1716585047300,-500.0,0.00027397,12]
[327895036,1716585047309,-500.0,0.00027397,12]
[327895037,1716585047318,-500.0,0.00027397,12]
[327895038,1716585047327,-500.0,0.00027397,12]
[327895039,1716585047339,-500.0,0.00027397,12]
[327895040,1716585047348,-811.22,0.00027397,12]
[327895041,1716585047358,-500.0,0.00027397,12]
[327895042,1716585047367,-500.0,0.00027397,12]
[327895043,1716585047377,-1687.09,0.00027397,12]
[327895044,1716585047387,-773.36,0.00027397,12]
[327895045,1716585047397,-500.0,0.00027397,12]
[327895046,1716585047410,-436.7,0.00027397,12]
[327895047,1716585047419,-500.0,0.00027397,12]
[327895048,1716585047429,-500.0,0.00027397,12]
[327895049,1716585047438,-2146.5,0.00027397,12]
[327895050,1716585047449,-730.35,0.00027397,12]
[327895051,1716585047459,-500.0,0.00027397,12]
[327895052,1716585047468,-500.0,0.00027397,12]
[327895053,1716585047480,-2258.06,0.00027397,12]
[327895054,1716585047489,-500.0,0.00027397,12]
[327895055,1716585047500,-500.0,0.00027397,12]
[327895056,1716585047510,-1176.13,0.00027397,12]
[327895057,1716585047519,-500.0,0.00027397,12]
[327895058,1716585047529,-500.0,0.00027397,12]
[327895059,1716585047538,-312.5,0.00027397,12]
[327895060,1716585047548,-270.34,0.00027397,12]
[327895061,1716585047558,-576.94,0.00027671,13]
[327895062,1716585047568,-500.0,0.00027671,13]
[327895063,1716585047577,-500.0,0.00027671,13]
[327895064,1716585047586,-500.0,0.00027671,13]
[327895065,1716585047596,-500.0,0.00027671,13]
[327895066,1716585047605,-500.0,0.00027671,13]
[327895067,1716585047614,-811.22,0.00027671,13]
[327895068,1716585047624,-500.0,0.00027671,13]
[327895069,1716585047633,-500.0,0.00027671,13]
[327895070,1716585047642,-1687.09,0.00027671,13]
[327895071,1716585047651,-773.36,0.00027671,13]
[327895072,1716585047661,-459.82,0.00027671,13]
[327895073,1716585047670,-500.0,0.00027671,13]
[327895074,1716585047679,-500.0,0.00027671,13]
[327895075,1716585047688,-2146.5,0.00027671,13]
[327895076,1716585047699,-730.35,0.00027671,13]
[327895077,1716585047709,-500.0,0.00027671,13]
[327895078,1716585047719,-500.0,0.00027671,13]
[327895079,1716585047729,-2258.06,0.00027671,13]
[327895080,1716585047738,-302.98094965,0.00027671,13]
[327895081,1716585047747,-500.0,0.00027671,13]
[327895082,1716585047757,-1176.13,0.00027671,13]
[327895083,1716585047767,-500.0,0.00027671,13]
[327895084,1716585047777,-1818.39,0.00027944,3]
[327895085,1716585047787,-500.0,0.00027945,14]
[327895086,1716585047796,-369.21652864,0.00027945,14]
[327895087,1716585047807,-500.0,0.00027945,14]
[327895088,1716585047816,-500.0,0.00027945,14]
[327895089,1716585047826,-500.0,0.00027945,14]
[327895090,1716585047835,-811.22,0.00027945,14]
[327895091,1716585047845,-500.0,0.00027945,14]
[327895092,1716585047854,-500.0,0.00027945,14]
[327895093,1716585047863,-1687.09,0.00027945,14]
[327895094,1716585047873,-773.36,0.00027945,14]
[327895095,1716585047882,-500.0,0.00027945,14]
[327895096,1716585048007,-500.0,0.00027945,14]
[327895097,1716585048019,-2146.5,0.00027945,14]
[327895098,1716585048030,-730.35,0.00027945,14]
[327895099,1716585048040,-500.0,0.00027945,14]
[327895100,1716585048049,-325.7,0.00027945,14]
[327895101,1716585048058,-2258.06,0.00027945,14]
[327895102,1716585048068,-500.0,0.00027945,14]
[327895103,1716585048077,-1176.13,0.00027945,14]
[327895104,1716585048087,-500.0,0.00027945,14]
[327895105,1716585048096,-221.76141425,0.00028,2]
[327895106,1716585048107,-500.0,0.00028219,15]
[327895107,1716585048117,-500.0,0.00028219,15]
[327895108,1716585048126,-500.0,0.00028219,15]
[327895109,1716585048135,-500.0,0.00028219,15]
[327895110,1716585048145,-811.22,0.00028219,15]
[327895111,1716585048156,-500.0,0.00028219,15]
[327895112,1716585048165,-500.0,0.00028219,15]
[327895113,1716585048174,-1687.09,0.00028219,15]
[327895114,1716585048184,-773.36,0.00028219,15]
[327895115,1716585048193,-500.0,0.00028219,15]
[327895116,1716585048203,-500.0,0.00028219,15]
[327895117,1716585048212,-2146.5,0.00028219,15]
[327895118,1716585048222,-730.35,0.00028219,15]
[327895119,1716585048232,-500.0,0.00028219,15]
[327895120,1716585048241,-2258.06,0.00028219,15]
[327895121,1716585048251,-500.0,0.00028219,15]
[327895122,1716585048262,-1176.13,0.00028219,15]
[327895123,1716585048271,-500.0,0.00028219,15]
[327895124,1716585048281,-656.72608123,0.00028371,2]
[327895125,1716585048290,-235.0,0.000284,2]
[327895126,1716585048300,-500.0,0.00028493,16]
[327895127,1716585048310,-496.28,0.00028493,16]
[327895128,1716585048320,-500.0,0.00028493,16]
[327895129,1716585048330,-500.0,0.00028493,16]
[327895130,1716585048339,-811.22,0.00028493,16]
[327895132,1716585048349,-500.0,0.00028493,16]
[327895134,1716585048359,-1687.09,0.00028493,16]
[327895135,1716585048368,-773.36,0.00028493,16]
[327895136,1716585048378,-500.0,0.00028493,16]
[327895137,1716585048388,-500.0,0.00028493,16]
[327895138,1716585048398,-2146.5,0.00028493,16]
[327895139,1716585048412,-730.35,0.00028493,16]
[327895140,1716585048421,-500.0,0.00028493,16]
[327895141,1716585048430,-2258.06,0.00028493,16]
[327895142,1716585048439,-335.23,0.00028493,16]
[327895143,1716585048450,-1176.13,0.00028493,16]
[327895144,1716585048460,-259.36149527,0.00028493,16]
[327895146,1716585048470,-500.0,0.00028767,17]
[327895148,1716585048481,-500.0,0.00028767,17]
[327895150,1716585048490,-811.22,0.00028767,17]
[327895151,1716585048501,-500.0,0.00028767,17]
[327895153,1716585048511,-1687.09,0.00028767,17]
[327895155,1716585048522,-773.36,0.00028767,17]
[327895157,1716585048531,-500.0,0.00028767,17]
[327895159,1716585048541,-500.0,0.00028767,17]
[327895161,1716585048552,-2146.5,0.00028767,17]
[327895162,1716585048561,-730.35,0.00028767,17]
[327895164,1716585048570,-500.0,0.00028767,17]
[327895166,1716585048580,-2258.06,0.00028767,17]
[327895168,1716585048589,-1176.13,0.00028767,17]
[327895169,1716585048599,-500.0,0.00029041,18]
[327895171,1716585048608,-500.0,0.00029041,18]
[327895173,1716585048618,-811.22,0.00029041,18]
[327895175,1716585048628,-309.47594837,0.00029041,18]
[327895177,1716585048638,-1687.09,0.00029041,18]
[327895179,1716585048647,-773.36,0.00029041,18]
[327895181,1716585048657,-358.32812072,0.00029041,18]
[327895183,1716585048666,-500.0,0.00029041,18]
[327895185,1716585048677,-2146.5,0.00029041,18]
[327895187,1716585048686,-730.35,0.00029041,18]
[327895189,1716585048696,-621.24480575,0.00029041,18]
[327895191,1716585048705,-2258.06,0.00029041,18]
[327895193,1716585048714,-1176.13,0.00029041,18]
[327895195,1716585048723,-592.84082224,0.00029185,2]
[327895197,1716585048733,-152.65713131,0.00029238,2]
[327895198,1716585048742,-152.65713131,0.00029257,2]
[327895200,1716585048751,-592.84082224,0.00029288,2]
[327895202,1716585048761,-912.66,0.00029311,12]
[327895204,1716585048770,-211.66795767,0.00029312,2]
[327895206,1716585048779,-500.0,0.00029315,19]
[327895208,1716585048789,-500.0,0.00029315,19]
[327895210,1716585048799,-811.22,0.00029315,19]
[327895212,1716585048810,-1687.09,0.00029315,19]
[327895214,1716585048819,-773.36,0.00029315,19]
[327895216,1716585048828,-500.0,0.00029315,19]
[327895218,1716585048837,-2146.5,0.00029315,19]
[327895220,1716585048846,-730.35,0.00029315,19]
[327895222,1716585048856,-2258.06,0.00029315,19]
[327895224,1716585048865,-1176.13,0.00029315,19]
[327895225,1716585048874,-2000.0,0.0002936,2]
[327895227,1716585048884,-300.0,0.000294,2]
[327895228,1716585048894,-154.927,0.0002947,2]
[327895229,1716585048903,-496.0,0.0002947,2]
[327895230,1716585048912,-592.84082224,0.00029562,2]
[327895231,1716585048922,-500.0,0.00029589,20]
[327895232,1716585048932,-500.0,0.00029589,20]
[327895233,1716585048942,-811.22,0.00029589,20]
[327895234,1716585048951,-1687.09,0.00029589,20]
[327895235,1716585048961,-773.36,0.00029589,20]
[327895236,1716585048970,-500.0,0.00029589,20]
[327895237,1716585048980,-2146.5,0.00029589,20]
[327895238,1716585048990,-730.35,0.00029589,20]
[327895239,1716585049000,-2258.06,0.00029589,20]
[327895240,1716585049010,-1176.13,0.00029589,20]
[327895241,1716585049021,-592.84082224,0.00029725,2]
[327895242,1716585049031,-152.71459282,0.00029817,2]
[327895243,1716585049040,-592.84082224,0.0002986,2]
[327895244,1716585049050,-500.0,0.00029863,21]
[327895245,1716585049060,-500.0,0.00029863,21]
[327895246,1716585049069,-811.22,0.00029863,21]
[327895247,1716585049079,-1687.09,0.00029863,21]
[327895248,1716585049090,-773.36,0.00029863,21]
[327895250,1716585049100,-500.0,0.00029863,21]
[327895252,1716585049110,-2146.5,0.00029863,21]
[327895254,1716585049119,-730.35,0.00029863,21]
[327895257,1716585049129,-2258.06,0.00029863,21]
[327895258,1716585049139,-1176.13,0.00029863,21]
[327895261,1716585049149,-592.84082224,0.00029917,2]
[327895263,1716585049158,-592.84082224,0.00029941,2]
[327895265,1716585049168,-592.84082224,0.00029944,2]
[327895266,1716585049177,-912.66,0.00029999,13]
[327895268,1716585049187,-1818.39,0.00029999,3]
[327895270,1716585049196,-12753.32015021,0.0003,2]
[327895272,1716585049205,-783.85662241,0.0003,4]
[327895274,1716585049214,-17243.67081528,0.0003,10]
[327895277,1716585049224,-1210.78934384,0.0003,3]
[327895279,1716585049234,-150.0,0.0003,2]
[327895281,1716585049243,-248.0,0.0003,2]
[327895282,1716585049253,-269.66301449,0.0003,2]
[327895284,1716585049263,-152.71459282,0.00030062,7]
[327895287,1716585049273,-1818.39,0.00030067,3]
[327895288,1716585049283,-150.81901718,0.00030083,2]
[327895290,1716585049292,-500.0,0.00030136,22]
[327895292,1716585049303,-500.0,0.00030136,22]
[327895294,1716585049313,-811.22,0.00030136,22]
[327895296,1716585049323,-1687.09,0.00030136,22]
[327895299,1716585049333,-773.36,0.00030136,22]
[327895300,1716585049343,-410.11,0.00030136,22]
[327895303,1716585049353,-2146.5,0.00030136,22]
[327895304,1716585049363,-730.35,0.00030136,21]
[327895306,1716585049373,-2258.06,0.00030136,22]
[327895308,1716585049383,-1176.13,0.00030136,22]
[327895310,1716585049395,-400.0,0.00030137,30]
[327895312,1716585049405,-592.84082224,0.00030138,7]
[327895314,1716585049416,-321.910608,0.0003031,2]
[327895316,1716585049426,-592.84082224,0.00030315,7]
[327895318,1716585049436,-592.84082224,0.00030355,7]
[327895321,1716585049447,-294.76090328,0.00030376,4]
[327895323,1716585049457,-300.0,0.000304,3]
[327895324,1716585049467,-500.0,0.0003041,23]
[327895326,1716585049476,-496.83938359,0.0003041,23]
[327895328,1716585049488,-811.22,0.0003041,23]
[327895331,1716585049498,-152.71459282,0.0003041,7]
[327895332,1716585049508,-1687.09,0.0003041,23]
[327895334,1716585049518,-773.36,0.0003041,23]
[327895336,1716585049527,-2146.5,0.0003041,23]
[327895337,1716585049537,-730.35,0.0003041,21]
[327895338,1716585049546,-2258.06,0.0003041,23]
[327895340,1716585049556,-1176.13,0.0003041,23]
[327895341,1716585049565,-150.0,0.00030411,2]
[327895342,1716585049574,-2558.33518356,0.00030497,30]
[327895343,1716585049584,-158.65629789,0.00030585,7]
[327895345,1716585049594,-301.63803436,0.00030589,4]
[327895346,1716585049603,-4226.56801723,0.00030607,2]
[327895347,1716585049613,-592.84082224,0.0003062,7]
[327895348,1716585049622,-417.57091557,0.00030637,2]
[327895349,1716585049632,-153.0,0.00030673,2]
[327895350,1716585049641,-153.0,0.00030673,2]
[327895351,1716585049651,-153.0,0.00030673,2]
[327895352,1716585049660,-153.0,0.00030673,2]
[327895353,1716585049669,-153.0,0.00030673,2]
[327895354,1716585049679,-153.0,0.00030673,2]
[327895355,1716585049688,-306.0,0.00030673,2]
[327895356,1716585049698,-500.0,0.00030684,24]
[327895357,1716585049708,-811.22,0.00030684,24]
[327895358,1716585049718,-1687.09,0.00030684,24]
[327895359,1716585049728,-773.36,0.00030684,24]
[327895360,1716585049737,-2146.5,0.00030684,24]
[327895361,1716585049746,-730.35,0.00030684,21]
[327895362,1716585049755,-2258.06,0.00030684,24]
[327895363,1716585049765,-1176.13,0.00030684,24]
[327895364,1716585049774,-1000.0,0.00030686,2]
[327895365,1716585049784,-477.27536979,0.00030686,4]
[327895366,1716585049794,-1266.09085455,0.0003069,3]
[327895367,1716585049803,-156.3060521,0.000307,7]
[327895368,1716585049812,-1000.0,0.00030705,2]
[327895369,1716585049821,-1000.0,0.00030727,2]
[327895370,1716585049830,-297.64342506,0.00030728,2]
[327895371,1716585049839,-300.0,0.00030747,2]
[327895372,1716585049848,-1000.0,0.00030796,2]
[327895373,1716585049858,-300.0,0.00030811,2]
[327895374,1716585049867,-300.0,0.00030816,2]
[327895375,1716585049877,-912.66,0.00030818,14]
[327895376,1716585049886,-1000.0,0.00030832,2]
[327895377,1716585049895,-300.0,0.00030844,2]
[327895378,1716585049904,-1000.0,0.00030858,2]
[327895379,1716585049914,-1000.0,0.00030878,2]
[327895380,1716585049923,-592.84082224,0.00030955,7]
[327895381,1716585049932,-193.28,0.00030958,25]
[327895382,1716585049942,-811.25,0.00030958,25]
[327895383,1716585049951,-1687.21,0.00030958,25]
[327895384,1716585049961,-773.38301034,0.00030958,25]
[327895385,1716585049970,-2146.54,0.00030958,25]
[327895386,1716585049980,-730.37,0.00030958,21]
[327895387,1716585049989,-2258.27860682,0.00030958,25]
[327895388,1716585049998,-1176.35507981,0.00030958,25]
[327895389,1716585050007,-250.03733637,0.00030985,4]
[327895390,1716585050017,-1818.39,0.00030985,3]
[327895391,1716585050026,-204.40270621,0.00030986,4]
[327895392,1716585050035,-279.36661499,0.00030986,4]
[327895393,1716585050045,-904.71121898,0.00030986,4]
[327895394,1716585050056,-314.65978959,0.00030986,4]
[327895395,1716585050065,-388.56076714,0.00030986,4]
[327895396,1716585050074,-405.84568177,0.00030986,4]
[327895397,1716585050083,-1270.17855478,0.00030986,4]
[327895398,1716585050092,-174.06628128,0.00030986,4]
[327895399,1716585050102,-399.80129372,0.00030986,4]
[327895400,1716585050111,-264.40789058,0.00030986,2]
[327895401,1716585050120,-912.66,0.00030986,15]
[327895402,1716585050130,-26212.95298073,0.00030987,4]
[327895403,1716585050139,-304.17588877,0.00030987,4]
[327895404,1716585050148,-213.69276494,0.00030987,4]
[327895405,1716585050158,-151.0,0.00030987,2]
[327895406,1716585050167,-3132.899824,0.00030987,2]
[327895407,1716585050176,-3132.899824,0.00030987,2]
[327895408,1716585050186,-151.0,0.00030987,2]
[327895409,1716585050195,-151.0,0.00030987,2]
[327895410,1716585050204,-151.0,0.00030987,2]
[327895411,1716585050213,-151.0,0.00030987,2]
[327895412,1716585050223,-151.0,0.00030987,2]
[327895413,1716585050232,-407.469296,0.00030987,2]
[327895414,1716585050242,-407.469296,0.00030987,2]
[327895415,1716585050251,-151.0,0.00030987,2]
[327895416,1716585050260,-1818.39,0.00030995,3]
[327895417,1716585050269,-381.92295026,0.00030996,4]
[327895418,1716585050278,-1337.37412521,0.00030996,4]
[327895419,1716585050288,-1502.69503457,0.00030996,4]
[327895420,1716585050297,-1149.34526784,0.00030996,4]
[327895421,1716585050307,-174.29544616,0.00030996,4]
[327895422,1716585050317,-163.01062011,0.00030996,4]
[327895423,1716585050326,-247.56118197,0.00030996,4]
[327895424,1716585050335,-221.04224831,0.00030996,2]
[327895425,1716585050345,-22683.67179847,0.00030996,4]
[327895426,1716585050354,-690.19911136,0.00030996,4]
[327895427,1716585050364,-195.06566195,0.00030996,4]
[327895428,1716585050373,-2596.77366924,0.00030996,4]
[327895429,1716585050382,-238.60242952,0.00030996,4]
[327895430,1716585050392,-912.66,0.00030996,16]
[327895431,1716585050435,-151.0,0.00030996,2]
[327895432,1716585050446,-151.0,0.00030996,2]
[327895433,1716585050456,-151.0,0.00030996,2]
[327895434,1716585050465,-233.280417,0.00030996,2]
[327895435,1716585050474,-233.280417,0.00030996,2]
[327895436,1716585050485,-151.0,0.00030996,2]
[327895437,1716585050495,-327.940235,0.00030996,2]
[327895438,1716585050505,-327.940235,0.00030996,2]
[327895439,1716585050514,-151.0,0.00030996,2]
[327895440,1716585050523,-151.0,0.00030996,2]
[327895441,1716585050533,-24.28556769,0.00030997,14]
[327895442,1716585050542,-250.80406463,0.00030997,4]
[327895443,1716585050551,-267.82213226,0.00030997,4]
[327895444,1716585050561,-190.32568759,0.00030997,2]
[327895445,1716585050570,-177.23924726,0.00030997,4]
[327895446,1716585050579,-200.66987231,0.00030997,4]
[327895447,1716585050588,-250.73159683,0.00030997,4]
[327895448,1716585050598,-155.14601025,0.00030997,4]
[327895449,1716585050607,-188.35473427,0.00030997,4]
[327895450,1716585050616,-629.7623599,0.00030997,4]
[327895451,1716585050626,-898.00692655,0.00030998,4]
[327895452,1716585050635,-345.410883,0.00030998,2]
[327895453,1716585050644,-184.60069001,0.00030998,4]
[327895454,1716585050653,-551.9765658,0.00030998,4]
[327895455,1716585050662,-286.91569158,0.00030998,2]
[327895456,1716585050671,-226.2696189,0.00030998,4]
[327895457,1716585050681,-455.62493126,0.00030998,4]
[327895458,1716585050690,-281.61001373,0.00030998,4]
[327895459,1716585050700,-162.560857,0.00030998,2]
[327895460,1716585050709,-155.09036724,0.00030998,4]
[327895461,1716585050718,-208.61566248,0.00030999,4]
[327895462,1716585050727,-205.07867405,0.00030999,4]
[327895463,1716585050736,-912.66,0.00030999,17]
[327895464,1716585050745,-912.66,0.00030999,18]
[327895465,1716585050755,-912.66,0.00030999,19]
[327895466,1716585050764,-912.66,0.00030999,20]
[327895467,1716585050773,-1818.39,0.00030999,3]
[327895468,1716585050782,-1818.39,0.00030999,3]
[327895469,1716585050791,-1818.39,0.00030999,3]
[327895470,1716585050800,-1818.39,0.00030999,3]
[327895471,1716585050810,-500.0,0.00030999,2]
[327895472,1716585050820,-12396.08127661,0.00031,11]
[327895473,1716585050829,-1973.68350076,0.00031,2]
[327895474,1716585050838,-1516.96436264,0.00031,2]
[327895475,1716585050847,-281.0,0.00031,3]
[327895476,1716585050856,-70462.92992167,0.00031,2]
[327895477,1716585050988,-6008.40502728,0.00031,2]
[327895478,1716585051003,-7147.57366698,0.00031,2]
[327895479,1716585051168,-3936.39948991,0.00031,2]
[327895480,1716585051301,-500.0,0.00024657,2]
[327895481,1716585051313,-500.0,0.00024657,2]
[327895482,1716585051322,-500.0,0.00024931,3]
[327895483,1716585051331,-0.36449618,0.00024931,3]
[327895484,1716585051346,-499.63550382,0.00024931,3]
[327895485,1716585051355,-500.0,0.00025205,4]
[327895486,1716585051364,-500.0,0.00025479,5]
[327895487,1716585051374,-500.0,0.00025753,6]
[327895488,1716585051384,-58845.86860939,0.00031,2]
[327895489,1716585051395,-596.98274629,0.00031,2]
[327895490,1716585051573,-2042.50161459,0.00031,2]
[327895491,1716585051583,-179.74028503,0.00031,2]
[327895492,1716585051591,-179.74028,0.00031,2]
[327895493,1716585051601,-151.0,0.00031,2]
[327895494,1716585051610,-151.0,0.00031,2]
[327895495,1716585051620,-872.476798,0.00031,2]
[327895496,1716585051629,-151.0,0.00031,2]
[327895497,1716585051639,-872.476798,0.00031,2]
[327895498,1716585051648,-151.0,0.00031,2]
[327895499,1716585051658,-151.0,0.00031,2]
[327895500,1716585051667,-160.0,0.00031,4]
[327895501,1716585051676,-296.100628,0.00031,2]
[327895502,1716585051686,-296.100628,0.00031,2]
[327895503,1716585051695,-151.0,0.00031,2]
[327895504,1716585051705,-151.0,0.00031,2]
[327895505,1716585051715,-151.0,0.00031,2]
[327895506,1716585051725,-151.0,0.00031,2]
[327895507,1716585051735,-151.0,0.00031,2]
[327895508,1716585051744,-151.0,0.00031,2]
[327895509,1716585051766,-151.0,0.00031,2]
[327895510,1716585051788,-233.280417,0.00031,2]
[327895511,1716585051811,-233.280417,0.00031,2]
[327895512,1716585051833,-151.0,0.00031,2]
[327895513,1716585051855,-327.940235,0.00031,2]
[327895514,1716585051877,-327.940235,0.00031,2]
[327895515,1716585051899,-151.0,0.00031,2]
[327895516,1716585051922,-151.0,0.00031,2]
[327895517,1716585051945,-151.0,0.00031,2]
[327895518,1716585051967,-3132.899824,0.00031,2]
[327895519,1716585051976,-3132.899824,0.00031,2]
[327895520,1716585051986,-254.965702,0.00031,2]
[327895521,1716585051995,-151.0,0.00031,2]
[327895522,1716585052006,-151.0,0.00031,2]
[327895523,1716585052016,-151.0,0.00031,2]
[327895524,1716585052026,-407.469296,0.00031,2]
[327895525,1716585052036,-407.469296,0.00031,2]
[327895526,1716585052046,-151.0,0.00031,2]
[327895527,1716585052056,-592.84082224,0.00031009,7]
[327895528,1716585052066,-152.71459282,0.00031185,7]
[327895529,1716585052075,-48755.17494399,0.00031248,5]
[327895530,1716585266867,463.17528394,9.999e-05,2]
[327895532,1716585532828,2090.65173461,9.999e-05,2]
[327895533,1716585548793,2088.61920915,9.999e-05,2]
[327895534,1716585550116,9295.35324241,9.999e-05,2]
[327895535,1716585680170,690.72744387,9.999e-05,2]
[327895536,1716585691521,836.12249757,9.999e-05,2]
[327895537,1716585693124,395.60607896,9.999e-05,2]
[327895538,1716585699564,1351.48664572,9.999e-05,2]
[327895539,1716585714147,7211.06896399,9.999e-05,2]
[327895540,1716585718784,697.36236629,9.999e-05,2]
[327895541,1716585728319,5652.1143369,9.999e-05,2]
[327895542,1716585734294,194.59578805,9.999e-05,2]
[327895543,1716585737807,455.7724915,9.999e-05,2]
[327895544,1716585741226,1043.9787751,9.999e-05,2]
[327895545,1716585744504,281.75410999,9.999e-05,2]
[327895546,1716585765617,513.98587396,9.999e-05,2]
[327895547,1716585770154,14483.99895244,9.999e-05,2]
[327895548,1716585860547,371.4516817,9.999e-05,2]
[327895549,1716585900847,962.49756129,9.999e-05,2]
[327895550,1716585925518,521.71519389,9.999e-05,2]
[327895551,1716585985884,785.92,0.00028,120]
[327895552,1716586027163,-388.90728382,0.00017472,2]
[327895553,1716586054157,-194.59578805,0.00017471,2]
[327895554,1716586054179,-59.88842275,0.00017472,2]
[327895555,1716586146121,-254.7051673,0.00017274,2]
[327895556,1716586146142,-3064.3909481,0.00017466,2]
[327895557,1716586146163,-194.59578805,0.00017467,2]
[327895558,1716586146184,-2599.40071805,0.00017467,2]
[327895559,1716586146205,-690.72744387,0.00017468,2]
[327895560,1716586146226,-250.0,0.00017478,2]
[327895561,1716586150255,249.23925231,0.00017466,2]
[327895562,1716586153100,-22225.28455,0.00017466,2]
[327895563,1716586156193,-3625.3375975,0.00017466,2]
[327895564,1716586157108,-357.07853191,0.00017466,2]
[327895565,1716586157128,-477.22705696,0.00018293,2]
[327895566,1716586157147,-2.81036204,0.00018478,2]
[327895567,1716586221032,203.56634597,9.999e-05,2]
[327895568,1716586221054,154.82968734,9.999e-05,2]
[327895569,1716586221078,362.09647764,9.999e-05,2]
[327895587,1716586232699,-3064.3909481,0.00018476,2]
[327895588,1716586232711,-1043.9787751,0.00018477,2]
[327895590,1716586232723,-368.32012268,0.00018478,2]
[327895592,1716586232734,-388.90728382,0.00018478,2]
[327895594,1716586232749,-689.75108358,0.00018478,2]
[327895597,1716586232760,-1543.12375851,0.00018478,2]
[327895599,1716586232774,-603.99455531,0.00018478,2]
[327895601,1716586232787,-62.3077552,0.00018478,2]
[327895637,1716586238666,-131.52925113,0.00018478,2]
[327895639,1716586238676,-405.63390422,0.00018479,2]
[327895640,1716586238686,-1582.09247572,0.0001848,2]
[327895642,1716586238696,-835.58769821,0.0001848,2]
[327895644,1716586238706,-399.66261331,0.0001848,2]
[327895645,1716586238715,-904.27375266,0.0001848,2]
[327895646,1716586238725,-158.58875339,0.0001848,2]
[327895648,1716586238736,-455.47737102,0.0001848,2]
[327895650,1716586238750,-281.52932903,0.0001848,2]
[327895652,1716586238759,-521.54759599,0.0001848,2]
[327895654,1716586238770,-211.66795767,0.00018481,2]
[327895655,1716586238780,-720.04961309,0.00018817,2]
[327895657,1716586238791,-3685.34465254,0.00018818,2]
[327895660,1716586238804,-2498.0228513,0.00018818,2]
[327895662,1716586238847,-18716.63249616,0.00018818,2]
[327895663,1716586238857,-150.0,0.000189,2]
[327895664,1716586238867,-2162.9,0.00019,2]
[327895665,1716586238877,-167.7311,0.00019178,2]
[327895667,1716586238887,-171.011544,0.00019178,2]
[327895669,1716586238896,-721.89,0.00019717,3]
[327895671,1716586238905,-913.56340849,0.00019724,2]
[327895673,1716586238915,-500.0,0.00019724,2]
[327895674,1716586238924,-500.0,0.00019724,2]
[327895676,1716586238934,-467.46775706,0.00019724,2]
[327895677,1716586238943,-213.69276494,0.00019725,2]
[327895679,1716586238953,-304.17588877,0.00019725,2]
[327895680,1716586238963,-204.40270621,0.00019725,2]
[327895681,1716586238972,-174.06628128,0.00019725,2]
[327895682,1716586238981,-250.03733637,0.00019725,2]